fUST/lending_fUST_20260605
["ID","MTS","AMOUNT","RATE_DAILY","PERIOD"]
[424163024,1780621838000,-3523.97207757,0.00013597,2]
[424163025,1780621838000,-3523.97207757,0.00013597,2]
[424163023,1780621838000,-3523.97207757,0.00013597,2]
[424163017,1780621838000,-3523.97207757,0.00013597,2]
[424163168,1780621843000,-3700.17068144,0.00013597,2]
[424163182,1780621843000,-500.0,0.00013698,2]
[424163161,1780621843000,-3700.17068144,0.00013597,2]
[424163163,1780621843000,-3700.17068144,0.00013597,2]
[424163170,1780621843000,-983778.87943233,0.00013598,2]
[424163150,1780621843000,-214.64001213,0.00013597,2]
[424163159,1780621843000,-3700.17068144,0.00013597,2]
[424163152,1780621843000,-3523.97207757,0.00013597,2]
[424163153,1780621843000,-3523.97207757,0.00013597,2]
[424163155,1780621843000,-3523.97207757,0.00013597,2]
[424163157,1780621843000,-3523.97207757,0.00013597,2]
[424163166,1780621843000,-3700.17068144,0.00013597,2]
[424163180,1780621843000,-500.0,0.00013698,2]
[424163176,1780621843000,-500.0,0.00013698,2]
[424163165,1780621843000,-3700.17068144,0.00013597,2]
[424163172,1780621843000,-161.503,0.00013697,2]
[424163198,1780621843000,-500.0,0.00013698,2]
[424163202,1780621843000,-500.0,0.00013698,2]
[424163197,1780621843000,-500.0,0.00013698,2]
[424163195,1780621843000,-500.0,0.00013698,2]
[424163193,1780621843000,-500.0,0.00013698,2]
[424163200,1780621843000,-500.0,0.00013698,2]
[424163189,1780621843000,-500.0,0.00013698,2]
[424163187,1780621843000,-500.0,0.00013698,2]
[424163185,1780621843000,-500.0,0.00013698,2]
[424163183,1780621843000,-500.0,0.00013698,2]
[424163174,1780621843000,-500.0,0.00013698,2]
[424163178,1780621843000,-500.0,0.00013698,2]
[424163191,1780621843000,-500.0,0.00013698,2]
[424163274,1780621844000,-500.0,0.00013698,2]
[424163273,1780621844000,-500.0,0.00013698,2]
[424163270,1780621844000,-572.60333001,0.00013698,2]
[424163267,1780621844000,-500.0,0.00013698,2]
[424163271,1780621844000,-500.0,0.00013698,2]
[424163272,1780621844000,-500.0,0.00013698,2]
[424163268,1780621844000,-500.0,0.00013698,2]
[424163263,1780621844000,-500.0,0.00013698,2]
[424163264,1780621844000,-500.0,0.00013698,2]
[424163265,1780621844000,-500.0,0.00013698,2]
[424163276,1780621844000,-500.0,0.00013698,2]
[424163269,1780621844000,-500.0,0.00013698,2]
[424163275,1780621844000,-560.30107329,0.00013698,2]
[424163283,1780621844000,-500.0,0.00013698,2]
[424163286,1780621844000,-500.0,0.00013698,2]
[424163280,1780621844000,-500.0,0.00013698,2]
[424163279,1780621844000,-633.36902697,0.00013698,2]
[424163284,1780621844000,-500.0,0.00013698,2]
[424163282,1780621844000,-500.0,0.00013698,2]
[424163262,1780621844000,-501.90953744,0.00013698,2]
[424163278,1780621844000,-500.0,0.00013698,2]
[424163277,1780621844000,-500.0,0.00013698,2]
[424163281,1780621844000,-500.0,0.00013698,2]
[424163285,1780621844000,-500.0,0.00013698,2]
[424163289,1780621844000,-500.0,0.00013698,2]
[424163299,1780621844000,-500.0,0.00013698,2]
[424163300,1780621844000,-500.0,0.00013698,2]
[424163297,1780621844000,-500.0,0.00013698,2]
[424163287,1780621844000,-500.0,0.00013698,2]
[424163259,1780621844000,-608.32864158,0.00013698,2]
[424163249,1780621844000,-500.0,0.00013698,2]
[424163256,1780621844000,-500.0,0.00013698,2]
[424163204,1780621844000,-500.0,0.00013698,2]
[424163206,1780621844000,-500.0,0.00013698,2]
[424163208,1780621844000,-531.18,0.00013698,2]
[424163210,1780621844000,-500.0,0.00013698,2]
[424163211,1780621844000,-500.0,0.00013698,2]
[424163213,1780621844000,-500.0,0.00013698,2]
[424163215,1780621844000,-500.0,0.00013698,2]
[424163224,1780621844000,-500.0,0.00013698,2]
[424163219,1780621844000,-500.0,0.00013698,2]
[424163217,1780621844000,-500.0,0.00013698,2]
[424163226,1780621844000,-500.0,0.00013698,2]
[424163221,1780621844000,-500.0,0.00013698,2]
[424163228,1780621844000,-500.0,0.00013698,2]
[424163223,1780621844000,-500.0,0.00013698,2]
[424163257,1780621844000,-288.24296217,0.00013698,2]
[424163232,1780621844000,-500.0,0.00013698,2]
[424163237,1780621844000,-500.0,0.00013698,2]
[424163234,1780621844000,-648.64,0.00013698,2]
[424163236,1780621844000,-500.0,0.00013698,2]
[424163250,1780621844000,-649.71911033,0.00013698,2]
[424163239,1780621844000,-500.0,0.00013698,2]
[424163241,1780621844000,-500.0,0.00013698,2]
[424163243,1780621844000,-500.0,0.00013698,2]
[424163247,1780621844000,-500.0,0.00013698,2]
[424163245,1780621844000,-500.0,0.00013698,2]
[424163291,1780621844000,-500.0,0.00013698,2]
[424163260,1780621844000,-500.0,0.00013698,2]
[424163261,1780621844000,-500.0,0.00013698,2]
[424163252,1780621844000,-500.0,0.00013698,2]
[424163254,1780621844000,-500.0,0.00013698,2]
[424163230,1780621844000,-500.0,0.00013698,2]
[424163294,1780621844000,-500.0,0.00013698,2]
[424163266,1780621844000,-500.0,0.00013698,2]
[424163298,1780621844000,-500.0,0.00013698,2]
[424163340,1780621844000,-500.0,0.00013698,2]
[424163341,1780621844000,-500.0,0.00013698,2]
[424163342,1780621844000,-500.0,0.00013698,2]
[424163328,1780621844000,-500.0,0.00013698,2]
[424163331,1780621844000,-500.0,0.00013698,2]
[424163329,1780621844000,-500.0,0.00013698,2]
[424163333,1780621844000,-500.0,0.00013698,2]
[424163335,1780621844000,-557.72,0.00013698,2]
[424163336,1780621844000,-500.35491489,0.00013698,2]
[424163344,1780621844000,-500.0,0.00013698,2]
[424163354,1780621844000,-544.01,0.00013972,2]
[424163351,1780621844000,-500.0,0.00013972,2]
[424163346,1780621844000,-500.0,0.00013698,2]
[424163348,1780621844000,-500.0,0.00013698,2]
[424163339,1780621844000,-500.0,0.00013698,2]
[424163356,1780621844000,-4840.64,0.00013972,2]
[424163349,1780621844000,-500.0,0.00013698,2]
[424163343,1780621844000,-4840.64,0.00013698,2]
[424163355,1780621844000,-500.0,0.00013972,2]
[424163345,1780621844000,-500.0,0.00013698,2]
[424163347,1780621844000,-500.0,0.00013698,2]
[424163350,1780621844000,-1000.0,0.00013699,2]
[424163352,1780621844000,-500.0,0.00013972,2]
[424163358,1780621844000,-553.62739409,0.00014132,2]
[424163357,1780621844000,-39174.521198,0.00014132,2]
[424163359,1780621844000,-10254.4338037,0.00014132,2]
[424163361,1780621844000,-500.0,0.00014145,2]
[424163293,1780621844000,-500.0,0.00013698,2]
[424163363,1780621844000,-500.0,0.00014145,2]
[424163360,1780621844000,-16204.6657598,0.00014132,2]
[424163353,1780621844000,-500.0,0.00013972,2]
[424163326,1780621844000,-500.0,0.00013698,2]
[424163362,1780621844000,-500.0,0.00014145,2]
[424163327,1780621844000,-500.0,0.00013698,2]
[424163338,1780621844000,-500.0,0.00013698,2]
[424163288,1780621844000,-500.0,0.00013698,2]
[424163290,1780621844000,-500.0,0.00013698,2]
[424163296,1780621844000,-500.0,0.00013698,2]
[424163295,1780621844000,-500.0,0.00013698,2]
[424163302,1780621844000,-214.02030934,0.00013698,2]
[424163301,1780621844000,-500.0,0.00013698,2]
[424163311,1780621844000,-500.0,0.00013698,2]
[424163307,1780621844000,-500.0,0.00013698,2]
[424163306,1780621844000,-500.0,0.00013698,2]
[424163303,1780621844000,-500.0,0.00013698,2]
[424163305,1780621844000,-500.0,0.00013698,2]
[424163304,1780621844000,-500.0,0.00013698,2]
[424163308,1780621844000,-500.0,0.00013698,2]
[424163309,1780621844000,-431.94739173,0.00013698,2]
[424163292,1780621844000,-502.56285709,0.00013698,2]
[424163312,1780621844000,-500.0,0.00013698,2]
[424163310,1780621844000,-500.0,0.00013698,2]
[424163318,1780621844000,-500.0,0.00013698,2]
[424163319,1780621844000,-500.0,0.00013698,2]
[424163324,1780621844000,-500.0,0.00013698,2]
[424163323,1780621844000,-500.0,0.00013698,2]
[424163322,1780621844000,-500.0,0.00013698,2]
[424163320,1780621844000,-500.0,0.00013698,2]
[424163314,1780621844000,-500.0,0.00013698,2]
[424163317,1780621844000,-500.0,0.00013698,2]
[424163325,1780621844000,-500.0,0.00013698,2]
[424163313,1780621844000,-500.0,0.00013698,2]
[424163315,1780621844000,-500.0,0.00013698,2]
[424163321,1780621844000,-500.0,0.00013698,2]
[424163316,1780621844000,-500.0,0.00013698,2]
[424163402,1780621845000,-500.0,0.00015241,2]
[424163404,1780621845000,-4840.64,0.00015342,2]
[424163406,1780621845000,-500.0,0.00015515,2]
[424163403,1780621845000,-500.0,0.00015342,2]
[424163401,1780621845000,-4840.64,0.00015068,2]
[424163411,1780621845000,-4840.64,0.00015616,2]
[424163399,1780621845000,-590.47,0.00014967,2]
[424163397,1780621845000,-4840.64,0.00014794,2]
[424163409,1780621845000,-500.0,0.00015616,2]
[424163398,1780621845000,-500.0,0.00014967,2]
[424163412,1780621845000,-500.0,0.00015789,2]
[424163400,1780621845000,-500.0,0.00015068,2]
[424163392,1780621845000,-4840.64,0.0001452,2]
[424163429,1780621845000,-500.0,0.00016712,2]
[424163414,1780621845000,-500.0,0.0001589,2]
[424163416,1780621845000,-4840.64,0.0001589,2]
[424163422,1780621845000,-500.0,0.00016164,2]
[424163424,1780621845000,-500.0,0.00016337,2]
[424163428,1780621845000,-500.0,0.00016611,2]
[424163418,1780621845000,-720.0,0.00015983,2]
[424163425,1780621845000,-200.0,0.00016438,2]
[424163426,1780621845000,-500.0,0.00016438,2]
[424163420,1780621845000,-500.0,0.00016063,2]
[424163427,1780621845000,-4840.64,0.00016438,2]
[424163431,1780621845000,-500.0,0.00016885,2]
[424163441,1780621845000,-767.92208879,0.00017557,2]
[424163388,1780621845000,-300.0,0.00014428,2]
[424163423,1780621845000,-4840.64,0.00016164,2]
[424163389,1780621845000,-300.0,0.00014428,2]
[424163382,1780621845000,-300.0,0.00014428,2]
[424163396,1780621845000,-500.0,0.00014794,2]
[424163370,1780621845000,-160.13,0.00014246,2]
[424163369,1780621845000,-500.0,0.00014246,2]
[424163367,1780621845000,-507.37,0.00014246,2]
[424163368,1780621845000,-500.0,0.00014246,2]
[424163366,1780621845000,-500.0,0.00014145,2]
[424163365,1780621845000,-500.0,0.00014145,2]
[424163364,1780621845000,-350.79005373,0.00014145,2]
[424163371,1780621845000,-4840.64,0.00014246,2]
[424163372,1780621845000,-500.0,0.00014419,2]
[424163373,1780621845000,-500.0,0.00014419,2]
[424163374,1780621845000,-189.92948836,0.00014419,2]
[424163377,1780621845000,-300.0,0.00014428,2]
[424163380,1780621845000,-300.0,0.00014428,2]
[424163376,1780621845000,-300.0,0.00014428,2]
[424163378,1780621845000,-300.0,0.00014428,2]
[424163375,1780621845000,-300.0,0.00014428,2]
[424163381,1780621845000,-300.0,0.00014428,2]
[424163379,1780621845000,-300.0,0.00014428,2]
[424163384,1780621845000,-300.0,0.00014428,2]
[424163394,1780621845000,-500.0,0.00014693,2]
[424163383,1780621845000,-300.0,0.00014428,2]
[424163385,1780621845000,-300.0,0.00014428,2]
[424163395,1780621845000,-500.0,0.00014693,2]
[424163391,1780621845000,-491.59,0.0001452,2]
[424163430,1780621845000,-4840.64,0.00016712,2]
[424163386,1780621845000,-300.0,0.00014428,2]
[424163393,1780621845000,-600.0,0.0001453,2]
[424163390,1780621845000,-500.0,0.0001452,2]
[424163433,1780621845000,-4840.64,0.00016986,2]
[424163387,1780621845000,-300.0,0.00014428,2]
[424163442,1780621845000,-160.0,0.00017557,2]
[424163466,1780621845000,-770.47,0.0001863,2]
[424163481,1780621845000,-300.0,0.00019589,3]
[424163482,1780621845000,-788.13344652,0.000196,2]
[424163471,1780621845000,-4840.64,0.00019178,2]
[424163472,1780621845000,-300.0,0.00019178,2]
[424163470,1780621845000,-418.20058043,0.00019178,2]
[424163476,1780621845000,-1000.0,0.00019339,2]
[424163473,1780621845000,-151.0,0.00019178,2]
[424163474,1780621845000,-151.0,0.00019178,2]
[424163480,1780621845000,-151.0,0.00019577,2]
[424163478,1780621845000,-770.47,0.00019452,2]
[424163475,1780621845000,-770.47,0.00019178,2]
[424163477,1780621845000,-4840.64,0.00019452,2]
[424163483,1780621845000,-4840.64,0.00019726,2]
[424163486,1780621845000,-650172.84749101,0.0002,2]
[424163485,1780621845000,-735733.65371817,0.0002,2]
[424163492,1780621845000,-151.0,0.0002,2]
[424163490,1780621845000,-151.0,0.0002,2]
[424163489,1780621845000,-151.0,0.0002,2]
[424163484,1780621845000,-770.47,0.00019726,2]
[424163487,1780621845000,-2560.85213555,0.0002,2]
[424163488,1780621845000,-151.0,0.0002,2]
[424163491,1780621845000,-151.0,0.0002,2]
[424163493,1780621845000,-151.0,0.0002,2]
[424163494,1780621845000,-151.0,0.0002,2]
[424163495,1780621845000,-151.0,0.0002,2]
[424163432,1780621845000,-500.0,0.00016986,2]
[424163464,1780621845000,-4840.64,0.0001863,2]
[424163461,1780621845000,-177.91061501,0.000184,2]
[424163479,1780621845000,-94990.2956,0.00019577,2]
[424163462,1780621845000,-177.91061501,0.000185,2]
[424163469,1780621845000,-210.20795333,0.00019078,2]
[424163440,1780621845000,-4840.64,0.00017534,2]
[424163435,1780621845000,-500.0,0.0001726,2]
[424163437,1780621845000,-492.75522987,0.00017433,2]
[424163439,1780621845000,-500.0,0.00017534,2]
[424163436,1780621845000,-4840.64,0.0001726,2]
[424163438,1780621845000,-170.0,0.00017444,2]
[424163444,1780621845000,-500.0,0.00017808,2]
[424163451,1780621845000,-444.0,0.00017844,2]
[424163454,1780621845000,-197.1238308,0.00017855,2]
[424163450,1780621845000,-2206.0,0.00017844,2]
[424163443,1780621845000,-864.0,0.00017581,2]
[424163447,1780621845000,-1415.0,0.00017844,2]
[424163453,1780621845000,-202.222,0.00017844,2]
[424163434,1780621845000,-500.0,0.00017159,2]
[424163463,1780621845000,-555.44,0.0001863,2]
[424163458,1780621845000,-177.91061501,0.000182,2]
[424163468,1780621845000,-770.47,0.00018904,2]
[424163459,1780621845000,-500.0,0.00018356,2]
[424163449,1780621845000,-3629.0,0.00017844,2]
[424163457,1780621845000,-4840.64,0.00018082,2]
[424163467,1780621845000,-4840.64,0.00018904,2]
[424163460,1780621845000,-4840.64,0.00018356,2]
[424163455,1780621845000,-177.91061501,0.00018,2]
[424163446,1780621845000,-296.46998142,0.00017815,2]
[424163448,1780621845000,-1837.0,0.00017844,2]
[424163445,1780621845000,-4840.64,0.00017808,2]
[424163452,1780621845000,-338.897,0.00017844,2]
[424163456,1780621845000,-500.0,0.00018082,2]
[424163538,1780621846000,-444.0,0.00020844,2]
[424163542,1780621846000,-317.754118,0.00020855,2]
[424163535,1780621846000,-233.73251402,0.000208,2]
[424163532,1780621846000,-150.52,0.000206,2]
[424163536,1780621846000,-770.47,0.00020822,2]
[424163529,1780621846000,-151.06,0.000205,2]
[424163533,1780621846000,-165.520903,0.00020639,2]
[424163531,1780621846000,-770.47,0.00020548,2]
[424163527,1780621846000,-150.52,0.000202,2]
[424163528,1780621846000,-770.47,0.00020274,2]
[424163526,1780621846000,-720.41,0.000201,14]
[424163539,1780621846000,-185.0,0.00020844,2]
[424163534,1780621846000,-356.4964,0.000208,2]
[424163537,1780621846000,-461.48,0.00020844,2]
[424163556,1780621846000,-3000.0,0.0002102,2]
[424163544,1780621846000,-326.3532855,0.00020857,2]
[424163543,1780621846000,-326.3532855,0.00020857,2]
[424163541,1780621846000,-326.3532855,0.00020855,2]
[424163546,1780621846000,-457.165364,0.00020857,2]
[424163545,1780621846000,-457.165364,0.00020857,2]
[424163557,1780621846000,-3000.0,0.0002103,2]
[424163553,1780621846000,-151.02,0.00021,2]
[424163549,1780621846000,-10000.0,0.00021,5]
[424163547,1780621846000,-326.3532855,0.00020857,2]
[424163558,1780621846000,-3000.0,0.0002104,2]
[424163555,1780621846000,-3000.0,0.0002101,2]
[424163551,1780621846000,-194.55,0.00021,2]
[424163548,1780621846000,-457.165364,0.00020857,2]
[424163540,1780621846000,-248.281354,0.00020845,2]
[424163530,1780621846000,-647.81340826,0.00020505,2]
[424163496,1780621846000,-151.0,0.0002,2]
[424163521,1780621846000,-151.74525577,0.0002,2]
[424163552,1780621846000,-151.41,0.00021,2]
[424163503,1780621846000,-151.0,0.0002,2]
[424163498,1780621846000,-151.0,0.0002,2]
[424163501,1780621846000,-151.0,0.0002,2]
[424163502,1780621846000,-151.0,0.0002,2]
[424163497,1780621846000,-151.0,0.0002,2]
[424163500,1780621846000,-151.0,0.0002,2]
[424163499,1780621846000,-151.0,0.0002,2]
[424163504,1780621846000,-151.0,0.0002,2]
[424163513,1780621846000,-981081.45453446,0.0002,2]
[424163514,1780621846000,-200.0,0.0002,14]
[424163515,1780621846000,-770.47,0.0002,2]
[424163516,1780621846000,-10000.0,0.0002,2]
[424163523,1780621846000,-2000.0,0.0002,7]
[424163505,1780621846000,-151.0,0.0002,2]
[424163512,1780621846000,-151.0,0.0002,2]
[424163511,1780621846000,-182.001,0.0002,2]
[424163506,1780621846000,-151.0,0.0002,2]
[424163507,1780621846000,-151.0,0.0002,2]
[424163508,1780621846000,-151.0,0.0002,2]
[424163510,1780621846000,-151.0,0.0002,2]
[424163517,1780621846000,-1000.0,0.0002,5]
[424163518,1780621846000,-205.92799758,0.0002,2]
[424163519,1780621846000,-1060.0,0.0002,7]
[424163522,1780621846000,-1000.0,0.0002,2]
[424163525,1780621846000,-376.76,0.000201,14]
[424163520,1780621846000,-4840.85524969,0.0002,2]
[424163524,1780621846000,-200.0,0.000201,2]
[424163509,1780621846000,-151.0,0.0002,2]
[424163550,1780621846000,-150.52,0.00021,2]
[424163554,1780621846000,-3000.0,0.00021,2]
[424163560,1780621846000,-1500.0,0.00021051,2]
[424163594,1780621846000,-457.165364,0.0002169,2]
[424163595,1780621846000,-457.165364,0.0002169,2]
[424163597,1780621846000,-326.3532855,0.0002169,2]
[424163602,1780621846000,-303.644039,0.00021776,2]
[424163601,1780621846000,-160.0,0.00021776,2]
[424163598,1780621846000,-457.1653641,0.0002169,2]
[424163599,1780621846000,-150.52,0.000217,2]
[424163600,1780621846000,-942.56457878,0.00021759,2]
[424163608,1780621846000,-151.0,0.00021918,2]
[424163607,1780621846000,-2363.77801697,0.00021918,2]
[424163603,1780621846000,-447.288078,0.00021776,2]
[424163605,1780621846000,-9966.6267442,0.00021847,2]
[424163606,1780621846000,-2768.95422743,0.00021918,2]
[424163604,1780621846000,-404.51,0.000218,7]
[424163610,1780621846000,-151.0,0.00021918,2]
[424163620,1780621846000,-174.25475931,0.00021918,2]
[424163609,1780621846000,-151.0,0.00021918,2]
[424163612,1780621846000,-166.38407515,0.00021918,2]
[424163615,1780621846000,-665.53630061,0.00021918,2]
[424163617,1780621846000,-388.66995946,0.00021918,2]
[424163611,1780621846000,-167.444583,0.00021918,2]
[424163613,1780621846000,-332.76815031,0.00021918,2]
[424163618,1780621846000,-583.0049392,0.00021918,2]
[424163619,1780621846000,-777.33991893,0.00021918,2]
[424163614,1780621846000,-499.15222546,0.00021918,2]
[424163616,1780621846000,-194.33497973,0.00021918,2]
[424163622,1780621846000,-533.27169525,0.00021918,2]
[424163621,1780621846000,-355.5144635,0.00021918,2]
[424163559,1780621846000,-3000.0,0.0002105,2]
[424163596,1780621846000,-457.165364,0.0002169,2]
[424163592,1780621846000,-457.165364,0.0002169,2]
[424163623,1780621846000,-711.02892701,0.00021918,2]
[424163593,1780621846000,-457.165364,0.0002169,2]
[424163561,1780621846000,-3000.0,0.0002106,2]
[424163562,1780621846000,-3000.0,0.0002107,2]
[424163564,1780621846000,-3000.0,0.0002109,2]
[424163571,1780621846000,-3000.0,0.0002115,2]
[424163570,1780621846000,-3000.0,0.0002114,2]
[424163572,1780621846000,-3000.0,0.0002116,2]
[424163563,1780621846000,-3000.0,0.0002108,2]
[424163567,1780621846000,-3000.0,0.0002111,2]
[424163590,1780621846000,-457.165364,0.00021679,2]
[424163565,1780621846000,-770.47,0.00021096,2]
[424163569,1780621846000,-3000.0,0.0002113,2]
[424163568,1780621846000,-3000.0,0.0002112,2]
[424163574,1780621846000,-4315.565085,0.0002118,2]
[424163575,1780621846000,-152.0,0.00021196,2]
[424163566,1780621846000,-3000.0,0.000211,2]
[424163577,1780621846000,-155.13433859,0.00021196,2]
[424163573,1780621846000,-3000.0,0.0002117,2]
[424163588,1780621846000,-315.4552018,0.00021677,2]
[424163591,1780621846000,-326.3532855,0.00021679,2]
[424163587,1780621846000,-156.0,0.0002165,30]
[424163581,1780621846000,-150.52,0.000213,2]
[424163580,1780621846000,-244.0,0.00021273,10]
[424163589,1780621846000,-457.165364,0.00021679,2]
[424163583,1780621846000,-179.328778,0.0002156,2]
[424163578,1780621846000,-1000.0,0.00021273,10]
[424163582,1780621846000,-770.47,0.0002137,2]
[424163585,1780621846000,-152.0,0.00021638,30]
[424163576,1780621846000,-152.0,0.00021196,2]
[424163584,1780621846000,-5044.27982351,0.0002161,2]
[424163586,1780621846000,-770.47,0.00021644,2]
[424163663,1780621847000,-409.73,0.000223,2]
[424163661,1780621847000,-2169.903,0.000223,2]
[424163664,1780621847000,-478.83,0.000223,2]
[424163662,1780621847000,-2169.9,0.000223,2]
[424163660,1780621847000,-2169.903,0.000223,2]
[424163667,1780621847000,-1512.38,0.000223,2]
[424163666,1780621847000,-1512.38,0.000223,2]
[424163665,1780621847000,-1505.9802,0.000223,2]
[424163659,1780621847000,-971.67489866,0.0002227,2]
[424163657,1780621847000,-764.42397529,0.00022268,2]
[424163658,1780621847000,-871.27379653,0.00022268,2]
[424163668,1780621847000,-1365.84,0.000223,2]
[424163670,1780621847000,-168.81004959,0.000223,2]
[424163680,1780621847000,-1208.86,0.000223,2]
[424163672,1780621847000,-655.1445,0.000223,2]
[424163671,1780621847000,-523.0507,0.000223,2]
[424163677,1780621847000,-850.5763,0.000223,2]
[424163682,1780621847000,-326.2346656,0.00022455,2]
[424163684,1780621847000,-1045.44872058,0.000225,2]
[424163675,1780621847000,-583.84,0.000223,2]
[424163674,1780621847000,-1931.1602,0.000223,2]
[424163673,1780621847000,-851.5927,0.000223,2]
[424163683,1780621847000,-770.47,0.00022466,2]
[424163681,1780621847000,-509.53825,0.00022401,7]
[424163679,1780621847000,-1208.866,0.000223,2]
[424163678,1780621847000,-1208.866,0.000223,2]
[424163676,1780621847000,-866.27,0.000223,2]
[424163656,1780621847000,-152.43066183,0.00022226,7]
[424163669,1780621847000,-1365.84,0.000223,2]
[424163655,1780621847000,-5000.0,0.00022214,2]
[424163644,1780621847000,-200.0,0.000221,2]
[424163650,1780621847000,-500.0,0.00022192,2]
[424163686,1780621847000,-200.0,0.0002251,2]
[424163628,1780621847000,-770.47,0.00021918,2]
[424163627,1780621847000,-611.53918023,0.00021918,2]
[424163624,1780621847000,-152.88479506,0.00021918,2]
[424163625,1780621847000,-305.76959012,0.00021918,2]
[424163629,1780621847000,-206.08,0.00021948,2]
[424163630,1780621847000,-17059.63072981,0.00021967,2]
[424163626,1780621847000,-458.65438517,0.00021918,2]
[424163633,1780621847000,-1500.0,0.00021974,2]
[424163631,1780621847000,-1500.0,0.00021974,2]
[424163632,1780621847000,-1500.0,0.00021974,2]
[424163634,1780621847000,-1500.0,0.00021974,2]
[424163636,1780621847000,-2327.661115,0.00021974,2]
[424163637,1780621847000,-1500.0,0.00021991,2]
[424163643,1780621847000,-108429.59109742,0.00022,2]
[424163639,1780621847000,-1500.0,0.00021991,2]
[424163638,1780621847000,-1500.0,0.00021991,2]
[424163640,1780621847000,-298.22,0.00021998,10]
[424163635,1780621847000,-1500.0,0.00021974,2]
[424163642,1780621847000,-161.1265756,0.00022,2]
[424163645,1780621847000,-150.52,0.000221,2]
[424163646,1780621847000,-152.0,0.00022117,2]
[424163641,1780621847000,-314776.43624774,0.00022,2]
[424163647,1780621847000,-152.0,0.00022117,2]
[424163649,1780621847000,-770.47,0.00022192,2]
[424163648,1780621847000,-6075.39267564,0.00022177,2]
[424163652,1780621847000,-5000.0,0.00022214,2]
[424163651,1780621847000,-5000.0,0.00022214,2]
[424163653,1780621847000,-5000.0,0.00022214,2]
[424163654,1780621847000,-5000.0,0.00022214,2]
[424163696,1780621847000,-510.67343203,0.00022769,30]
[424163697,1780621847000,-917.30877035,0.00022792,2]
[424163685,1780621847000,-150.52,0.000225,2]
[424163717,1780621847000,-185.21742015,0.00023093,7]
[424163723,1780621847000,-152.43,0.00023176,7]
[424163725,1780621847000,-197.88,0.00023183,7]
[424163726,1780621847000,-158.0,0.00023197,2]
[424163727,1780621847000,-272.5,0.000232,2]
[424163724,1780621847000,-186.54,0.00023176,7]
[424163732,1780621847000,-186.56971595,0.00023226,7]
[424163728,1780621847000,-272.5,0.00023207,2]
[424163735,1780621847000,-272.5,0.00023234,2]
[424163733,1780621847000,-272.5,0.00023228,2]
[424163734,1780621847000,-197.88,0.00023233,7]
[424163730,1780621847000,-272.5,0.00023221,2]
[424163729,1780621847000,-272.5,0.00023214,2]
[424163715,1780621847000,-197.88,0.00023083,7]
[424163731,1780621847000,-152.43,0.00023226,7]
[424163749,1780621847000,-272.5,0.00023276,2]
[424163748,1780621847000,-152.43,0.00023276,7]
[424163750,1780621847000,-500.0,0.00023277,10]
[424163751,1780621847000,-246.372317,0.00023277,10]
[424163752,1780621847000,-52482.91072491,0.00023277,2]
[424163736,1780621847000,-272.5,0.00023241,2]
[424163753,1780621847000,-25425.52853406,0.00023277,10]